fUSD/lending_fUSD_20251204
["ID","MTS","AMOUNT","RATE_DAILY","PERIOD"]
[396241378,1764864646379,-480.06,0.00019041,2]
[396241379,1764864646389,-470.37,0.00019041,2]
[396241380,1764864646398,-480.06,0.00019041,2]
[396241381,1764864646408,-480.06,0.00019041,2]
[396241382,1764864646418,-480.06,0.00019041,2]
[396241383,1764864646428,-480.06,0.00019041,2]
[396241384,1764864646437,-480.06,0.00019041,2]
[396241385,1764864646446,-960.12,0.00019041,2]
[396241386,1764864646456,-967.84,0.00019041,2]
[396241387,1764864646465,-557.0,0.00019045,2]
[396241388,1764864646475,-152.0,0.00019071,2]
[396241389,1764864646484,-200.0,0.00019071,2]
[396241390,1764864646494,-150.118,0.00019071,2]
[396241391,1764864646506,-150.145,0.00019071,2]
[396241392,1764864646516,-162.895,0.00019071,2]
[396241393,1764864646525,-150.0,0.00019071,2]
[396241394,1764864646534,-150.23,0.00019071,2]
[396241395,1764864646543,-150.0,0.00019071,2]
[396241396,1764864646552,-1604.0,0.00019071,2]
[396241397,1764864646562,-3444.0,0.00019071,2]
[396241398,1764864646571,-610.0,0.00019071,2]
[396241399,1764864646580,-614.0,0.00019071,2]
[396241400,1764864646590,-4706.0,0.00019071,2]
[396241401,1764864646599,-318.211,0.00019071,2]
[396241402,1764864646609,-1900.0,0.00019072,2]
[396241403,1764864646619,-33331.51360388,0.00019092,2]
[396241404,1764864646628,-24490.701228,0.00019171,2]
[396241405,1764864646638,-20032.75,0.00019178,2]
[396241406,1764864646647,-557.0,0.00019182,2]
[396241407,1764864646657,-1251.0,0.00019189,2]
[396241408,1764864646666,-1251.0,0.00019189,2]
[396241409,1764864646676,-1251.0,0.00019189,2]
[396241410,1764864646686,-1251.0,0.00019189,2]
[396241411,1764864646696,-166.66,0.00019222,2]
[396241412,1764864646705,-557.0,0.00019319,2]
[396241413,1764864646715,-150.0,0.00019434,5]
[396241414,1764864646724,-150.0,0.00019434,5]
[396241415,1764864646733,-1000.0,0.00019438,2]
[396241416,1764864646742,-557.0,0.00019456,2]
[396241417,1764864646752,-1000.0,0.00019499,2]
[396241418,1764864646762,-269.44479198,0.00019539,5]
[396241419,1764864646772,-557.0,0.00019593,2]
[396241420,1764864646781,-298.26089446,0.00019618,2]
[396241421,1764864646790,-1900.0,0.0001962,2]
[396241422,1764864646800,-5464.6140871,0.00019657,2]
[396241423,1764864646809,-154.8398486,0.00019729,2]
[396241424,1764864646818,-557.0,0.0001973,2]
[396241425,1764864646827,-500.95745715,0.00019852,2]
[396241426,1764864646836,-6134.8176937,0.00019862,2]
[396241427,1764864646846,-557.0,0.00019867,2]
[396241428,1764864646855,-4550.6136345,0.000199,3]
[396241429,1764864646865,-764.40966672,0.000199,2]
[396241430,1764864646875,-150.0,0.00019973,2]
[396241431,1764864646884,-250.0,0.0001999,2]
[396241432,1764864646893,-175.88473519,0.0001999,2]
[396241433,1764864646903,-250.0,0.0001999,2]
[396241434,1764864646913,-250.0,0.0001999,2]
[396241435,1764864646925,-250.0,0.0001999,2]
[396241436,1764864646935,-150.83,0.0001999,2]
[396241437,1764864646944,-500.0,0.00019999,2]
[396241438,1764864646954,-261.4979647,0.00019999,2]
[396241439,1764864646963,-230.72343704,0.00019999,2]
[396241440,1764864646973,-264.37471922,0.00019999,2]
[396241441,1764864646983,-610.16191763,0.00019999,2]
[396241442,1764864646995,-10862.67530809,0.0002,2]
[396241443,1764864647005,-865.97238361,0.0002,5]
[396241444,1764864647016,-15867.27833996,0.0002,5]
[396241445,1764864647026,-771.329196,0.0002,2]
[396241446,1764864647035,-3950.0,0.0002,2]
[396241447,1764864647045,-73607.70844627,0.0002,2]
[396241448,1764864647055,-7251.90251763,0.0002,2]
[396241449,1764864647064,-1287.78072263,0.0002,2]
[396241450,1764864647074,-1039.45352697,0.0002,2]
[396241451,1764864647083,-2848.52996633,0.0002,2]
[396241452,1764864647092,-414.54289206,0.0002,2]
[396241453,1764864647106,-4255.17025482,0.0002,2]
[396241454,1764864649654,-8602.53257097,0.0002,2]
[396241455,1764864649663,-172.95,0.0002,2]
[396241456,1764864649672,-1342.17501925,0.0002,2]
[396241457,1764864649681,-2405.59017131,0.0002,2]
[396241458,1764864649690,-53712.63902002,0.0002,2]
[396241459,1764864649699,-557.0,0.00020004,2]
[396241460,1764864649709,-8720.0,0.0002001,2]
[396241461,1764864649718,-261.23,0.00020033,2]
[396241462,1764864649727,-1000.0,0.00020116,2]
[396241463,1764864649736,-577.0,0.00020141,2]
[396241464,1764864649747,-1900.0,0.00020168,2]
[396241465,1764864649756,-456.64,0.00020187,2]
[396241466,1764864649765,-181.8,0.00020277,2]
[396241467,1764864649775,-240.1880196,0.00020302,2]
[396241468,1764864649783,-1000.0,0.00020321,2]
[396241469,1764864649793,-167.56,0.00020374,2]
[396241470,1764864649802,-552.43,0.00020384,2]
[396241471,1764864649811,-552.43,0.00020384,2]
[396241472,1764864649820,-552.43,0.00020384,2]
[396241473,1764864649830,-552.43,0.00020384,2]
[396241474,1764864649962,-552.43,0.00020384,2]
[396241475,1764864649972,-552.43,0.00020384,2]
[396241476,1764864649981,-552.43,0.00020384,2]
[396241477,1764864649992,-552.43,0.00020384,2]
[396241478,1764864650001,-1102.99,0.00020384,2]
[396241479,1764864650011,-552.43,0.00020384,2]
[396241480,1764864650020,-552.43,0.00020384,2]
[396241481,1764864650030,-1368.8628544,0.00020501,2]
[396241482,1764864650039,-250.0,0.00020521,2]
[396241483,1764864650048,-191.08,0.00020548,2]
[396241484,1764864650057,-22540.68009874,0.000207,2]
[396241485,1764864650067,-2000.0,0.000207,2]
[396241486,1764864650076,-1104.64,0.00020712,2]
[396241487,1764864650085,-1104.64,0.00020712,2]
[396241488,1764864650095,-552.43,0.00020712,2]
[396241489,1764864650109,-1900.0,0.00020716,2]
[396241490,1764864650118,-1000.0,0.00020795,2]
[396241491,1764864650128,-1500.00585722,0.000209,3]
[396241492,1764864650137,-309.29654756,0.00020987,2]
[396241493,1764864650148,-20000.0,0.00021,2]
[396241494,1764864650157,-1186.48878654,0.00021,2]
[396241495,1764864650166,-195.84673444,0.00021,2]
[396241496,1764864650176,-350.0,0.00021,2]
[396241497,1764864650186,-350.0,0.00021068,2]
[396241498,1764864650195,-150.0,0.000211,2]
[396241499,1764864650204,-2010.46929123,0.000212,2]
[396241500,1764864650214,-1900.0,0.00021264,2]
[396241501,1764864650223,-195.22,0.00021267,2]
[396241502,1764864650233,-5800.0,0.00021341,2]
[396241503,1764864650242,-177.99,0.0002137,2]
[396241504,1764864650252,-177.99,0.0002137,2]
[396241505,1764864650261,-177.75,0.0002137,2]
[396241506,1764864650270,-206.55,0.00021379,2]
[396241507,1764864650280,-10000.0,0.00021434,2]
[396241508,1764864650289,-151.0,0.00021534,2]
[396241509,1764864650298,-151.0,0.00021534,2]
[396241510,1764864650307,-151.0,0.00021534,2]
[396241511,1764864650315,-151.0,0.00021534,2]
[396241512,1764864650325,-151.0,0.00021534,2]
[396241513,1764864650334,-151.0,0.00021534,2]
[396241514,1764864650343,-151.0,0.00021534,2]
[396241515,1764864650351,-153.72611,0.00021534,2]
[396241516,1764864650361,-151.0,0.00021534,2]
[396241517,1764864650371,-151.0,0.00021534,2]
[396241518,1764864650381,-151.0,0.00021534,2]
[396241519,1764864650390,-151.0,0.00021534,2]
[396241520,1764864650399,-151.0,0.00021534,2]
[396241521,1764864650408,-151.0,0.00021534,2]
[396241522,1764864650417,-299.107332,0.00021534,2]
[396241523,1764864650426,-299.107332,0.00021534,2]
[396241524,1764864650435,-151.0,0.00021534,2]
[396241525,1764864650444,-299.107332,0.00021534,2]
[396241526,1764864650453,-299.107332,0.00021534,2]
[396241527,1764864650462,-151.0,0.00021534,2]
[396241528,1764864650471,-151.0,0.00021534,2]
[396241529,1764864650480,-151.894211,0.00021534,2]
[396241530,1764864650489,-151.0,0.00021534,2]
[396241531,1764864650499,-152.811684,0.00021534,2]
[396241532,1764864650508,-151.0,0.00021534,2]
[396241533,1764864650517,-151.0,0.00021534,2]
[396241534,1764864650526,-151.0,0.00021534,2]
[396241535,1764864650535,-153.874817,0.00021534,2]
[396241536,1764864650544,-151.0,0.00021534,2]
[396241537,1764864650553,-151.0,0.00021534,2]
[396241538,1764864650562,-156.081439,0.00021534,2]
[396241539,1764864650571,-151.0,0.00021534,2]
[396241540,1764864650580,-151.0,0.00021534,2]
[396241541,1764864650589,-151.0,0.00021534,2]
[396241542,1764864650598,-552.43,0.00021534,2]
[396241543,1764864650607,-552.43,0.00021534,2]
[396241544,1764864650616,-1113.77,0.00021534,2]
[396241545,1764864650626,-552.43,0.00021534,2]
[396241546,1764864650636,-552.43,0.00021534,2]
[396241547,1764864650645,-552.43,0.00021534,2]
[396241548,1764864650655,-552.43,0.00021534,2]
[396241549,1764864650664,-552.43,0.00021534,2]
[396241550,1764864650675,-552.43,0.00021534,2]
[396241551,1764864650684,-552.43,0.00021534,2]
[396241552,1764864650693,-552.43,0.00021534,2]
[396241553,1764864650703,-552.43,0.00021534,2]
[396241554,1764864650712,-552.43,0.00021534,2]
[396241555,1764864650721,-552.43,0.00021534,2]
[396241556,1764864650731,-552.43,0.00021534,2]
[396241557,1764864650740,-552.43,0.00021534,2]
[396241558,1764864650750,-552.43,0.00021534,2]
[396241559,1764864650759,-552.43,0.00021534,2]
[396241560,1764864650769,-552.43,0.00021534,2]
[396241561,1764864650778,-552.43,0.00021534,2]
[396241562,1764864650787,-552.43,0.00021534,2]
[396241563,1764864650796,-552.43,0.00021534,2]
[396241564,1764864650806,-552.43,0.00021534,2]
[396241565,1764864650815,-552.43,0.00021534,2]
[396241566,1764864650824,-552.43,0.00021534,2]
[396241567,1764864650834,-552.43,0.00021534,2]
[396241568,1764864650843,-552.43,0.00021534,2]
[396241569,1764864650853,-552.43,0.00021534,2]
[396241570,1764864650862,-552.43,0.00021534,2]
[396241571,1764864650871,-552.43,0.00021534,2]
[396241572,1764864650881,-552.43,0.00021534,2]
[396241573,1764864650891,-552.43,0.00021534,2]
[396241574,1764864650900,-552.43,0.00021534,2]
[396241575,1764864650910,-552.43,0.00021534,2]
[396241576,1764864650919,-552.43,0.00021534,2]
[396241577,1764864650928,-552.43,0.00021534,2]
[396241578,1764864650938,-552.43,0.00021534,2]
[396241579,1764864650947,-552.43,0.00021534,2]
[396241580,1764864650957,-552.43,0.00021534,2]
[396241581,1764864650967,-825.29,0.00021534,2]
[396241582,1764864650976,-552.43,0.00021534,2]
[396241583,1764864650986,-552.43,0.00021534,2]
[396241584,1764864650995,-552.43,0.00021534,2]
[396241585,1764864651004,-552.43,0.00021534,2]
[396241586,1764864651014,-552.43,0.00021534,2]
[396241587,1764864651023,-552.43,0.00021534,2]
[396241588,1764864651032,-549.31368495,0.00021616,2]
[396241589,1764864651042,-150.99,0.00021757,2]
[396241590,1764864651051,-9999.99,0.00021757,2]
[396241591,1764864651060,-2955.71,0.00021757,2]
[396241592,1764864651070,-1900.0,0.00021812,2]
[396241593,1764864651079,-552.43,0.00021863,2]
[396241594,1764864651089,-552.43,0.00021863,2]
[396241595,1764864651103,-552.43,0.00021863,2]
[396241596,1764864651112,-5000.0,0.00021918,2]
[396241597,1764864651121,-150.0,0.00021918,2]
[396241598,1764864651131,-150.0,0.00021918,2]
[396241599,1764864651140,-150.0,0.00021918,2]
[396241600,1764864651151,-6510.0,0.00021964,2]
[396241601,1764864651161,-1003.5506884,0.00021999,2]
[396241602,1764864651171,-150.0,0.00022,2]
[396241603,1764864651182,-150.0,0.00022,2]
[396241604,1764864651192,-400.81659745,0.00022,2]
[396241605,1764864651202,-10000.0,0.00022,2]
[396241606,1764864651211,-150.0,0.00022,2]
[396241607,1764864651222,-500.0,0.00022,5]
[396241608,1764864651231,-151.0,0.00022,2]
[396241609,1764864651242,-9105.02,0.00022,7]
[396241610,1764864651253,-261.23,0.00022036,2]
[396241611,1764864651262,-150.0,0.00022071,2]
[396241612,1764864651272,-150.0,0.00022071,2]
[396241613,1764864651281,-1604.0,0.00022071,2]
[396241614,1764864651291,-3444.0,0.00022071,2]
[396241615,1764864651299,-610.0,0.00022071,2]
[396241616,1764864651308,-614.0,0.00022071,2]
[396241617,1764864651317,-4706.0,0.00022071,2]
[396241618,1764864651327,-253.0,0.00022071,2]
[396241619,1764864651336,-1000.0,0.00022353,2]
[396241620,1764864651345,-320.74051982,0.00022356,2]
[396241621,1764864651354,-150.0,0.000224,14]
[396241622,1764864651364,-167.56,0.00022412,2]
[396241623,1764864651373,-150.0,0.00022466,2]
[396241624,1764864651382,-150.53,0.00022466,2]
[396241625,1764864651391,-150.0,0.00022466,2]
[396241626,1764864651400,-150.0,0.00022466,2]
[396241627,1764864651410,-150.0,0.00022466,2]
[396241628,1764864651419,-150.0,0.00022466,2]
[396241629,1764864651428,-162.65,0.00022466,2]
[396241630,1764864651437,-150.0,0.00022466,2]
[396241631,1764864651447,-150.0,0.00022466,2]
[396241632,1764864651456,-150.0,0.00022466,2]
[396241633,1764864651465,-150.0,0.00022466,2]
[396241634,1764864651475,-181.8,0.00022467,2]
[396241635,1764864651483,-1432.72,0.0002256,2]
[396241636,1764864651492,-240.1880196,0.00022675,5]
[396241637,1764864651502,-418.41,0.00022685,2]
[396241638,1764864651511,-418.41,0.00022685,2]
[396241639,1764864651520,-418.41,0.00022685,2]
[396241640,1764864651529,-418.41,0.00022685,2]
[396241641,1764864651539,-418.41,0.00022685,2]
[396241642,1764864651547,-418.41,0.00022685,2]
[396241643,1764864651557,-418.41,0.00022685,2]
[396241644,1764864651566,-418.41,0.00022685,2]
[396241645,1764864651575,-418.41,0.00022685,2]
[396241646,1764864651584,-418.41,0.00022685,2]
[396241647,1764864651593,-418.41,0.00022685,2]
[396241648,1764864651602,-418.41,0.00022685,2]
[396241649,1764864651612,-418.41,0.00022685,2]
[396241650,1764864651621,-418.41,0.00022685,2]
[396241651,1764864651631,-418.41,0.00022685,2]
[396241652,1764864651640,-418.41,0.00022685,2]
[396241653,1764864651649,-418.41,0.00022685,2]
[396241654,1764864651658,-418.41,0.00022685,2]
[396241655,1764864651788,-418.41,0.00022685,2]
[396241656,1764864651797,-418.41,0.00022685,2]
[396241657,1764864651807,-418.41,0.00022685,2]
[396241658,1764864651816,-418.41,0.00022685,2]
[396241659,1764864651827,-418.41,0.00022685,2]
[396241660,1764864651837,-418.41,0.00022685,2]
[396241661,1764864651847,-418.41,0.00022685,2]
[396241662,1764864651858,-418.41,0.00022685,2]
[396241663,1764864651867,-418.41,0.00022685,2]
[396241664,1764864651876,-418.41,0.00022685,2]
[396241665,1764864651885,-418.41,0.00022685,2]
[396241666,1764864651894,-418.41,0.00022685,2]
[396241667,1764864651903,-177.99,0.00022685,2]
[396241668,1764864651912,-418.41,0.00022685,2]
[396241669,1764864651921,-418.41,0.00022685,2]
[396241670,1764864651931,-177.99,0.00022685,2]
[396241671,1764864651940,-418.41,0.00022685,2]
[396241672,1764864651950,-418.41,0.00022685,2]
[396241673,1764864651959,-418.41,0.00022685,2]
[396241674,1764864651969,-418.41,0.00022685,2]
[396241675,1764864651978,-418.41,0.00022685,2]
[396241676,1764864651987,-418.41,0.00022685,2]
[396241677,1764864651996,-355.9,0.00022685,2]
[396241678,1764864652005,-418.41,0.00022685,2]
[396241679,1764864652015,-177.99,0.00022685,2]
[396241680,1764864652024,-418.41,0.00022685,2]
[396241681,1764864652033,-177.99,0.00022685,2]
[396241682,1764864652043,-418.41,0.00022685,2]
[396241683,1764864652052,-177.99,0.00022685,2]
[396241684,1764864652061,-418.41,0.00022685,2]
[396241685,1764864652071,-177.99,0.00022685,2]
[396241686,1764864652081,-418.41,0.00022685,2]
[396241687,1764864652091,-418.41,0.00022685,2]
[396241688,1764864652102,-177.99,0.00022685,2]
[396241689,1764864652112,-418.41,0.00022685,2]
[396241690,1764864652122,-177.99,0.00022685,2]
[396241691,1764864652132,-177.99,0.00022685,2]
[396241692,1764864652142,-418.41,0.00022685,2]
[396241693,1764864652152,-177.99,0.00022685,2]
[396241694,1764864652162,-418.41,0.00022685,2]
[396241695,1764864652172,-177.99,0.00022685,2]
[396241696,1764864652183,-418.41,0.00022685,2]
[396241697,1764864652193,-418.41,0.00022685,2]
[396241698,1764864652202,-177.99,0.00022685,2]
[396241699,1764864652212,-177.99,0.00022685,2]
[396241700,1764864652221,-418.41,0.00022685,2]
[396241701,1764864652230,-177.99,0.00022685,2]
[396241702,1764864652239,-418.41,0.00022685,2]
[396241703,1764864652249,-177.99,0.00022685,2]
[396241704,1764864652259,-418.41,0.00022685,2]
[396241705,1764864652267,-418.41,0.00022685,2]
[396241706,1764864652277,-177.99,0.00022685,2]
[396241707,1764864652286,-177.99,0.00022685,2]
[396241708,1764864652295,-418.41,0.00022685,2]
[396241709,1764864652304,-1214.85,0.00022685,2]
[396241710,1764864652314,-1214.85,0.00022685,2]
[396241711,1764864652323,-1214.85,0.00022685,2]
[396241712,1764864652332,-1214.85,0.00022685,2]
[396241713,1764864652341,-1214.85,0.00022685,2]
[396241714,1764864652352,-150.0,0.00023,2]
[396241715,1764864652362,-150.0,0.00023,2]
[396241716,1764864652371,-400.0,0.00023,2]
[396241717,1764864652381,-418.41,0.00023014,2]
[396241718,1764864652391,-418.41,0.00023014,2]
[396241719,1764864652400,-355.92,0.00023014,2]
[396241720,1764864652410,-177.99,0.00023014,2]
[396241721,1764864652421,-1214.85,0.00023014,2]
[396241722,1764864652431,-1214.85,0.00023014,2]
[396241723,1764864652440,-1214.85,0.00023014,2]
[396241724,1764864652449,-1214.85,0.00023014,2]
[396241725,1764864652459,-1214.85,0.00023014,2]
[396241726,1764864652468,-1214.85,0.00023014,2]
[396241727,1764864652477,-1214.85,0.00023014,2]
[396241728,1764864652487,-1214.85,0.00023014,2]
[396241729,1764864652496,-1214.85,0.00023014,2]
[396241730,1764864652505,-1214.85,0.00023014,2]
[396241731,1764864652515,-1214.85,0.00023014,2]
[396241732,1764864652524,-1214.85,0.00023014,2]
[396241733,1764864652533,-1214.85,0.00023014,2]
[396241734,1764864652542,-1214.85,0.00023014,2]
[396241735,1764864652552,-1214.85,0.00023014,2]
[396241736,1764864652561,-1214.85,0.00023014,2]
[396241737,1764864652571,-1214.85,0.00023014,2]
[396241738,1764864652580,-1214.85,0.00023014,2]
[396241739,1764864652590,-150.0,0.00023014,2]
[396241740,1764864652599,-150.0,0.00023014,2]
[396241741,1764864652608,-150.0,0.00023014,2]
[396241742,1764864652617,-150.0,0.000232,2]
[396241743,1764864652626,-2299.99999901,0.00023237,2]
[396241744,1764864652636,-170.14,0.00023507,2]
[396241745,1764864652646,-170.14,0.00023507,2]
[396241746,1764864652655,-170.14,0.00023507,2]
[396241747,1764864652666,-170.14,0.00023507,2]
[396241748,1764864652676,-170.14,0.00023507,2]
[396241749,1764864652685,-170.14,0.00023507,2]
[396241750,1764864652694,-170.14,0.00023507,2]
[396241751,1764864652704,-170.14,0.00023507,2]
[396241752,1764864652714,-170.14,0.00023507,2]
[396241753,1764864652724,-170.14,0.00023507,2]
[396241754,1764864652733,-170.14,0.00023507,2]
[396241755,1764864652743,-170.14,0.00023507,2]
[396241756,1764864652753,-340.99,0.00023507,2]
[396241757,1764864652762,-340.28,0.00023507,2]
[396241758,1764864652772,-764.40966666,0.00023525,2]
[396241759,1764864652781,-332.60791905,0.00023725,2]
[396241760,1764864652791,-177.99,0.00023836,2]
[396241761,1764864652801,-177.99,0.00023836,2]
[396241762,1764864652810,-177.99,0.00023836,2]
[396241763,1764864652820,-418.41,0.00023836,2]
[396241764,1764864652830,-177.99,0.00023836,2]
[396241765,1764864652839,-418.41,0.00023836,2]
[396241766,1764864652849,-177.99,0.00023836,2]
[396241767,1764864652859,-418.41,0.00023836,2]
[396241768,1764864652868,-177.99,0.00023836,2]
[396241769,1764864652878,-418.41,0.00023836,2]
[396241770,1764864652888,-177.99,0.00023836,2]
[396241771,1764864652897,-418.41,0.00023836,2]
[396241772,1764864652914,-418.41,0.00023836,2]
[396241773,1764864652925,-177.99,0.00023836,2]
[396241774,1764864652935,-177.99,0.00023836,2]
[396241775,1764864652945,-204.67,0.00023836,2]
[396241776,1764864652954,-177.99,0.00023836,2]
[396241777,1764864652963,-177.99,0.00023836,2]
[396241778,1764864652972,-177.99,0.00023836,2]
[396241779,1764864652982,-177.99,0.00023836,2]
[396241780,1764864652992,-177.99,0.00023836,2]
[396241781,1764864653001,-418.41,0.00023836,2]
[396241782,1764864653011,-177.99,0.00023836,2]
[396241783,1764864653020,-418.41,0.00023836,2]
[396241784,1764864653030,-177.99,0.00023836,2]
[396241785,1764864653039,-418.41,0.00023836,2]
[396241786,1764864653049,-177.99,0.00023836,2]
[396241787,1764864653059,-418.41,0.00023836,2]
[396241788,1764864653069,-177.99,0.00023836,2]
[396241789,1764864653079,-418.41,0.00023836,2]
[396241790,1764864653089,-177.99,0.00023836,2]
[396241791,1764864653100,-418.41,0.00023836,2]
[396241792,1764864653113,-177.99,0.00023836,2]
[396241793,1764864653122,-177.99,0.00023836,2]
[396241794,1764864653132,-177.99,0.00023836,2]
[396241795,1764864653149,-177.99,0.00023836,2]
[396241796,1764864653165,-355.93,0.00023836,2]
[396241797,1764864653175,-355.9,0.00023836,2]
[396241798,1764864653186,-177.99,0.00023836,2]
[396241799,1764864653196,-177.99,0.00023836,2]
[396241800,1764864653207,-177.99,0.00023836,2]
[396241801,1764864653217,-177.99,0.00023836,2]
[396241802,1764864653227,-177.99,0.00023836,2]
[396241803,1764864653237,-177.99,0.00023836,2]
[396241804,1764864653247,-177.99,0.00023836,2]
[396241805,1764864653257,-177.99,0.00023836,2]
[396241806,1764864653267,-177.99,0.00023836,2]
[396241807,1764864653277,-177.99,0.00023836,2]
[396241808,1764864653288,-177.99,0.00023836,2]
[396241809,1764864653298,-177.99,0.00023836,2]
[396241810,1764864653308,-177.99,0.00023836,2]
[396241811,1764864653318,-353.97,0.00023836,2]
[396241812,1764864653328,-177.96,0.00023836,2]
[396241813,1764864653338,-355.92,0.00023836,2]
[396241814,1764864653348,-177.99,0.00023836,2]
[396241815,1764864653357,-177.99,0.00023836,2]
[396241816,1764864653367,-177.99,0.00023836,2]
[396241817,1764864653377,-177.99,0.00023836,2]
[396241818,1764864653387,-177.99,0.00023836,2]
[396241819,1764864653397,-177.99,0.00023836,2]
[396241820,1764864653407,-1214.85,0.00023836,2]
[396241821,1764864653607,-1214.85,0.00023836,2]
[396241822,1764864653618,-1214.85,0.00023836,2]
[396241823,1764864653628,-1214.85,0.00023836,2]
[396241824,1764864653638,-1214.85,0.00023836,2]
[396241825,1764864653652,-1214.85,0.00023836,2]
[396241826,1764864653662,-1214.85,0.00023836,2]
[396241827,1764864653672,-1214.85,0.00023836,2]
[396241828,1764864653682,-1214.85,0.00023836,2]
[396241829,1764864653692,-1214.85,0.00023836,2]
[396241830,1764864653702,-1214.85,0.00023836,2]
[396241831,1764864653712,-1214.85,0.00023836,2]
[396241832,1764864653722,-1214.85,0.00023836,2]
[396241833,1764864653731,-1198.7,0.00023836,2]
[396241834,1764864653741,-213.49,0.00023836,2]
[396241835,1764864653752,-1214.85,0.00023836,2]
[396241836,1764864653762,-170.14,0.00023836,2]
[396241837,1764864653772,-170.14,0.00023836,2]
[396241838,1764864653782,-1214.85,0.00023836,2]
[396241839,1764864653791,-1214.85,0.00023836,2]
[396241840,1764864653801,-1214.85,0.00023836,2]
[396241841,1764864653811,-1214.85,0.00023836,2]
[396241842,1764864653821,-1214.85,0.00023836,2]
[396241843,1764864653831,-2426.13,0.00023836,2]
[396241844,1764864653844,-170.14,0.00023836,2]
[396241845,1764864653854,-170.14,0.00023836,2]
[396241846,1764864653864,-170.14,0.00023836,2]
[396241847,1764864653874,-170.14,0.00023836,2]
[396241848,1764864653884,-170.14,0.00023836,2]
[396241849,1764864653894,-170.14,0.00023836,2]
[396241850,1764864653904,-9105.02,0.000239,7]
[396241851,1764864653914,-200.0,0.00024,2]
[396241852,1764864653924,-200.0,0.00024,2]
[396241853,1764864653934,-500.0,0.00024,2]
[396241854,1764864653946,-261.23,0.00024039,2]
[396241855,1764864653956,-1000.0,0.00024385,2]
[396241856,1764864653966,-2000.0,0.000244,2]
[396241857,1764864653976,-167.56,0.00024449,2]
[396241858,1764864653986,-743.35,0.00024658,2]
[396241859,1764864653996,-1000.0,0.00024658,2]
[396241860,1764864654007,-1706.18,0.00024658,30]
[396241861,1764864654017,-151.0,0.00024658,2]
[396241862,1764864654027,-171.305775,0.00024658,2]
[396241863,1764864654041,-170.14,0.00024658,2]
[396241864,1764864654051,-170.14,0.00024658,2]
[396241865,1764864654062,-170.14,0.00024658,2]
[396241866,1764864654072,-170.14,0.00024658,2]
[396241867,1764864654082,-170.14,0.00024658,2]
[396241868,1764864654091,-170.14,0.00024658,2]
[396241869,1764864654102,-170.14,0.00024658,2]
[396241870,1764864654114,-170.14,0.00024658,2]
[396241871,1764864654123,-170.14,0.00024658,2]
[396241872,1764864654132,-170.14,0.00024658,2]
[396241873,1764864654143,-170.14,0.00024658,2]
[396241874,1764864654153,-170.14,0.00024658,2]
[396241875,1764864654163,-170.14,0.00024658,2]
[396241876,1764864654173,-170.14,0.00024658,2]
[396241877,1764864654185,-170.14,0.00024658,2]